Cogmind - Beta 15 @@@ ROGUE MODE // 2025.06.15 @ 20:25:02 Player: Mogwok Wargfriend Result: Destroyed by Y-45 Defender with Beam Rifle Performance ------------- Evolutions (1) 500 Regions Visited (3) 600 Robots Destroyed (95) 475 Value Destroyed (1838) 1838 Prototype IDs (4) 80 Alien Tech Used (0) 0 Bonus (279) 279 TOTAL SCORE: 3772 Bonus ------- High Alert Combat Kills 20 Follower Combat Kills 276 Friendly Fire -17 Cogmind --------- Core Integrity 0/400 Matter 300/300 Energy 260/265 System Corruption 4% Temperature Cool (22) Movement Walking (120) Location -9/Storage Parts ------- > --- POWER (1) -------- Improved Ion Engine > --- PROPULSION (3) --- Aluminum Leg Improved Aluminum Leg Carbon-fiber Leg > --- UTILITY (3) ------ Improved Heat Sink Medium Storage Unit Signal Interpreter > --- WEAPON (2) ------- Improved Medium Laser Improved Medium Laser > --- INVENTORY (10) --- Cooled Ion Engine Aluminum Leg Improved Aluminum Leg Sensor Array Light Armor Plating Hacking Suite Authchip [Processor] Mini Grenade Launcher Plasma Cutter Mace Peak State ------------ > --- POWER ------------ Light Nuclear Core > --- PROPULSION ------- Aluminum Leg Improved Aluminum Leg Carbon-fiber Leg > --- UTILITY ---------- Improved Heat Sink Medium Storage Unit Signal Interpreter > --- WEAPON ----------- Improved Medium Laser Improved Medium Laser > --- INVENTORY -------- Cooled Ion Engine Aluminum Leg Improved Aluminum Leg Sensor Array Light Armor Plating Hacking Suite Authchip [Processor] Mini Grenade Launcher Datajack Mace [Rating: 22] Favorites ----------- Power Light Ion Engine Engine Light Ion Engine Power Core Light Nuclear Core Propulsion Aluminum Leg Leg Aluminum Leg Wheel Wheel Utility Medium Storage Unit Device Heat Sink Storage Medium Storage Unit Processor Signal Interpreter Weapon Medium Laser Energy Gun Medium Laser Ballistic Gun Assault Rifle Special Weapon Mining Laser Impact Weapon Mace Special Melee Weapon Datajack Build | -11 -10 -9 -9 ------- Run | Yrd Mat Mat Sto Slots Evolved 2 | . . 2 . Power . | . . . . Propulsion 1 | . . 1 . Utility 1 | . . 1 . Weapon . | . . . . Parts Attached 67 | 7 16 28 16 Power 12 | 1 4 4 3 Engine 11 | 1 4 4 2 Core 1 | . . . 1 Reactor . | . . . . Propulsion 21 | 2 5 8 6 Treads . | . . . . Leg 19 | 2 4 7 6 Wheel 2 | . 1 1 . Hover . | . . . . Flight . | . . . . Utility 13 | 2 2 7 2 Device 6 | 1 1 2 2 Storage 4 | 1 . 3 . Processor 3 | . 1 2 . Hackware . | . . . . Protection . | . . . . Artifact . | . . . . Weapon 21 | 2 5 9 5 Energy Gun 14 | 1 3 7 3 Energy Cannon . | . . . . Ballistic Gun 1 | 1 . . . Ballistic Cannon . | . . . . Launcher . | . . . . Special Weapon 3 | . 1 1 1 Impact Weapon 1 | . . 1 . Slashing Weapon . | . . . . Piercing Weapon . | . . . . Special Melee Weapon 2 | . 1 . 1 Unidentified Prototypes 4 | . . 3 1 Corrupted Parts 2 | . 2 . . System Corruption 7 | . 7 . . Parts Lost 14 | . 5 6 3 Power 2 | . 1 . 1 Propulsion 5 | . 1 3 1 Utility 2 | . 1 1 . Weapon 5 | . 2 2 1 Highest Loss Streak 4 | . 3 4 2 To Critical Strikes . | . . . . Average Backups 8 | 3 6 9 9 Power 1 | . 1 1 1 Propulsion 1 | 1 1 2 1 Utility 2 | . 1 3 4 Weapon 2 | 1 2 2 2 Tool/Special . | . . . . Unused Backups 12 | . 1 3 8 Power 1 | . . . 1 Propulsion 2 | . 1 . 1 Utility 5 | . . 1 4 Weapon 4 | . . 2 2 Tool/Special . | . . . . Average Slot Usage (%) 97 | . 97 95 99 Engine 9 | . 13 10 2 Core 1 | . . . 8 Leg 29 | . 23 30 32 Wheel 1 | . 3 . . Device 9 | . 3 12 11 Storage 11 | . 14 11 11 Processor 8 | . 10 7 11 Energy Gun 19 | . 14 20 20 Ballistic Gun 1 | . 6 . . Peak Build Rating 22 | 7 7 15 22 Average Rating 12 | 5 6 11 19 On Entrance 7 | . 7 7 14 Naked Turns . | . . . . Heaviest Build 34 | 13 15 34 25 Greatest Support 38 | 20 20 30 38 Greatest Overweight (x) 2 | 2 1 1 1 Average Overweight (x) . | . . . . Largest Inventory Capacity 15 | 8 8 15 10 Average Capacity 9 | 7 8 9 10 Most Carried 10 | 5 8 10 10 Average Carried 8 | 3 6 9 9 Final Capacity 10 | 8 8 10 10 Final Carried 10 | 5 7 10 10 Class Distribution -------------------- 64% | Mutant 35% | Scavenger-Mutant Dominant Class ---------------- Mutant | -10/Materials Mutant | -9/Materials Scavenger-Mutant | -9/Storage Resources | -11 -10 -9 -9 ----------- Run | Yrd Mat Mat Sto Matter Collected 1363 | 288 289 554 232 Remotely . | . . . . Salvage Created 3715 | 132 523 2041 1019 Parts 196 | 7 36 111 42 Haulers Intercepted 11 | . 2 6 3 Recyclers Shooed 11 | . 2 7 2 Parts Field Recycled . | . . . . Retrieved Matter . | . . . . Parts Self-Destructed . | . . . . Prevented . | . . . . Kills | -11 -10 -9 -9 ------- Run | Yrd Mat Mat Sto Combat Hostiles Destroyed 48 | . 10 29 9 Guns 41 | . 10 23 8 AOE 4 | . . 4 . Classes Destroyed 13 | 2 5 6 . Worker 6 | . 2 4 . Builder 3 | . . 2 1 Tunneler 2 | 2 . . . Hauler 11 | . 2 6 3 Recycler 14 | 1 1 7 5 Mechanic 3 | . . 1 2 Operator 3 | . . 3 . Watcher 5 | . 1 4 . Swarmer 17 | . 6 11 . Grunt 17 | . 4 7 6 Brawler 1 | . . 1 . Duelist 1 | . . 1 . Sentry 12 | . . 9 3 Best Kill Streak 7 | 3 4 7 6 Combat Bots Only 4 | . 3 4 2 Max Kills in Single Turn 2 | 1 1 2 1 Gunslinging 1 | . . 1 . Exploded 1 | . . 1 . Melee . | . . . . Uniques/NPCs Destroyed . | . . . . Combat | -11 -10 -9 -9 -------- Run | Yrd Mat Mat Sto Hostile Shots Fired 297 | . 85 136 76 Missed 88 | . 32 35 21 Hits 209 | . 53 101 55 Melee 2 | . . 2 . Projectile 207 | . 53 99 55 Critical Strikes 2 | . . 2 . Damage Taken 3027 | . 884 1348 795 Core 522 | . 110 230 182 Absorbed by Shields . | . . . . Regen/Repaired (Parts) 197 | . . 197 . Core Remaining (%) 78 | 100 56 . . Volleys Fired 319 | 10 101 132 76 Largest 2 | 2 2 2 2 Hottest 121 | 70 100 121 121 Shots Fired 548 | 16 144 259 129 Gun 511 | 16 112 259 124 Cannon . | . . . . Launcher . | . . . . Special 37 | . 32 . 5 Kinetic 35 | 6 29 . . Thermal 434 | 10 100 195 129 Explosive . | . . . . Electromagnetic 79 | . 15 64 . Robot Hit Streak 23 | 3 11 21 23 Robot Miss Streak 5 | 3 4 5 4 Penetration Max . | . . . . Secondary Targets 3 | . . 3 . Max Gunslinging Chain 1 | . . 1 . Shots Hit Robots 334 | 9 73 173 79 Core Hits 138 | 4 24 81 29 Critical Kills . | . . . . Critical Parts Destroyed 1 | 1 . . . Critical Strikes 27 | 2 2 18 5 Burn 25 | 1 2 17 5 Destroy 1 | 1 . . . Corrupt 1 | . . 1 . Melee Attacks 20 | . 6 11 3 Impact 14 | . . 11 3 Slashing . | . . . . Piercing . | . . . . Sneak Attacks 6 | . 6 . . Combat Hostiles . | . . . . Follow-up Attacks . | . . . . Damage Inflicted 5255 | 114 866 2933 1342 Guns 4542 | 114 839 2262 1327 Cannons . | . . . . Explosions 598 | . 27 571 . Melee 100 | . . 100 . Ramming 2 | . . . 2 Kinetic 308 | 53 255 . . Thermal 3995 | 61 526 2068 1340 Explosive 323 | . . 323 . Electromagnetic 527 | . 85 442 . Impact 100 | . . 100 . Slashing . | . . . . Piercing . | . . . . Highest Corruption 19 | . 19 . 4 Average Corruption 6 | . 9 . 3 Corruption Purged . | . . . . Corruption Blocked . | . . . . Effects 30 | . 14 . 16 Message Errors 7 | . 4 . 3 Matter Fused 5 | . 3 . 2 Heat Flow Errors 4 | . 1 . 3 Energy Discharges 3 | . 2 . 1 Data Loss (minor) 5 | . 2 . 3 Misfires 3 | . . . 3 Alerts 2 | . 1 . 1 Weapon Failures 1 | . 1 . . Overload Shots . | . . . . Overflow Damage 153 | . . 153 . Projectiles . | . . . . Explosions 137 | . . 137 . Melee 16 | . . 16 . Knockbacks . | . . . . Impact . | . . . . Kinetic . | . . . . Secondary . | . . . . Self-Inflicted Damage 213 | . . 213 . Shots 4 | . . 4 . Rammed . | . . . . Targets Rammed 1 | . . . 1 Kicked 1 | . . . 1 Crushed . | . . . . Highest Temperature 210 | 76 210 189 168 Average Temperature 47 | 35 53 43 43 Received Heat Transfer 771 | . 96 306 369 Siege Activations . | . . . . Martial Activations . | . . . . Shielding Activations . | . . . . Robots Disrupted . | . . . . Combat Hostiles . | . . . . Robots Corrupted . | . . . . Combat Hostiles . | . . . . Parts Fried 2 | . . 2 . Impact Corruptions 2 | . . 2 . Robots Melted 4 | . . 3 1 Combat Hostiles 3 | . . 2 1 Parts Melted 29 | . 5 12 12 Heat Transferred 11974 | 259 1571 6740 3404 Parts Sabotaged . | . . . . Parts Stolen . | . . . . Parts Stripped . | . . . . Power Chain Reactions 6 | . 1 5 . Alert | -11 -10 -9 -9 ------- Run | Yrd Mat Mat Sto Maximum Alert Level 2 | . . 2 1 Low Security (%) 52 | 100 100 16 80 Level 1 44 | . . 78 19 Level 2 2 | . . 5 . Level 3 . | . . . . Level 4 . | . . . . Level 5 . | . . . . High Security . | . . . . Max Security . | . . . . Peak Influence 501 | 10 68 501 384 Initial 169 | . . 4 169 Average 188 | . 17 285 161 Influence Increases 2229 | 15 334 1248 632 Destroy 0b10 Robot/C 1160 | . 200 580 380 Destroy 0b10 Robot/NC 235 | 15 30 135 55 Destroy Leader 312 | . 36 180 96 Allied During Kill 31 | . . . 31 Successful Hack 73 | . 27 40 6 Disable Machine 180 | . 15 105 60 Destroy Structure 88 | . 26 58 4 Lose Combat Pursuer 150 | . . 150 . Influence Decreases 2082 | 15 323 859 885 Entered New Map 238 | . . 7 231 Time Decay 1367 | 15 276 642 434 Lost Part 137 | . 47 60 30 Lost Ally 40 | . . . 40 Purge Threat 300 | . . 150 150 Squads Dispatched 9 | . 2 5 2 Investigation 1 | . 1 . . Extermination . | . . . . Reinforcement 4 | . 1 3 . Assault 4 | . . 2 2 Garrison . | . . . . Intercept . | . . . . Searches Triggered . | . . . . Construction Impeded 1 | . . 1 . Haulers Reinforced . | . . . . Active Scanning Responses . | . . . . Cargo Convoy Interrupts . | . . . . Stealth | -11 -10 -9 -9 --------- Run | Yrd Mat Mat Sto Distress Signals 2 | . . 2 . Communications Jammed . | . . . . Distress Signals . | . . . . Times Spotted 87 | . 14 43 30 Peak Tracking Total 8 | . 7 6 8 Tactical Retreats 7 | . . 7 . Traps | -11 -10 -9 -9 ------- Run | Yrd Mat Mat Sto Traps Triggered 13 | . 4 6 3 Indirectly . | . . . . Trap Hack Attempts . | . . . . Triggered . | . . . . Disarmed 6 | . . 6 . Reprogrammed . | . . . . Reused . | . . . . Traps Extracted . | . . . . Installed . | . . . . Triggered . | . . . . Machines | -11 -10 -9 -9 ---------- Run | Yrd Mat Mat Sto Machines Disabled 12 | . 1 7 4 Max in Single Turn 2 | . 1 2 1 Machines Repaired . | . . . . Machines Dismantled 1 | . . . 1 Machines Sabotaged . | . . . . Overloaded Fab Kills . | . . . . Hacking | -11 -10 -9 -9 --------- Run | Yrd Mat Mat Sto Machines Accessed 22 | . 4 12 6 Terminals 16 | . 3 8 5 Fabricators . | . . . . Repair Stations 1 | . . 1 . Recycling Units 4 | . 1 2 1 Scanalyzers 1 | . . 1 . Garrison Access . | . . . . Total Hacks 62 | . 11 38 13 Successful 32 | . 8 22 2 Failed 30 | . 3 16 11 Catastrophic 7 | . . 4 3 Database Lockouts . | . . . . Manual 46 | . 11 23 12 Terminals 45 | . 10 24 11 Fabricators . | . . . . Repair Stations 8 | . . 8 . Recycling Units 7 | . 1 4 2 Scanalyzers 2 | . . 2 . Garrison Access . | . . . . Terminal Hacks 12 | . 4 7 1 Robot Analysis 5 | . 3 2 . Terminal Index 2 | . 1 1 . Alert Level 1 | . . 1 . Unreport Threat 2 | . . 1 1 Locate Traps 1 | . . 1 . Disarm Traps 1 | . . 1 . Fabricator Hacks . | . . . . Repair Station Hacks 7 | . . 7 . Scan Component 4 | . . 4 . Repair 3 | . . 3 . Recycling Unit Hacks 1 | . . 1 . Process 1 | . . 1 . Scanalyzer 2 | . . 2 . Insert Component 1 | . . 1 . Analyze 1 | . . 1 . Garrison Access Hacks . | . . . . Unauthorized Hacks 10 | . 4 5 1 Terminals 7 | . 3 3 1 Botnet 4 | . 2 2 . Operators 3 | . 1 1 1 Fabricators . | . . . . Repair Stations . | . . . . Recycling Units 3 | . 1 2 . Reject 3 | . 1 2 . Scanalyzers . | . . . . Garrison Access . | . . . . Data Cores Recovered . | . . . . Used . | . . . . Hacking Detections 20 | . 3 11 6 Full Trace Events . | . . . . Feedback Events . | . . . . Feedback Blocked . | . . . . Robot Schematics Acquired . | . . . . Robots Built . | . . . . Authchips . | . . . . Time . | . . . . Total Robot Build Rating . | . . . . Part Schematics Acquired 1 | . . 1 . Parts Built . | . . . . Authchips . | . . . . Time . | . . . . Total Part Build Rating . | . . . . Parts Repaired 3 | . . 3 . Time 88 | . . 88 . Parts Recycled . | . . . . Recycled Matter 252 | . . 252 . Retrieved Matter . | . . . . Retrieved Components . | . . . . Parts Scanalyzed 1 | . . 1 . Part Schematics Acquired 1 | . . 1 . Parts Damaged . | . . . . Bothacking | -11 -10 -9 -9 ------------ Run | Yrd Mat Mat Sto Used RIF Installer . | . . . . Robots Hacked 3 | . 3 . . Non-combat 3 | . 3 . . Combat . | . . . . Robot Hacks Applied 4 | . 4 . . parse_system 1 | . 1 . . no_distress 3 | . 3 . . Relay Couplers Released . | . . . . Fabnet Peak Effective % . | . . . . Robots Rewired . | . . . . Allies Hacked . | . . . . Hacks Repelled . | . . . . Allies | -11 -10 -9 -9 -------- Run | Yrd Mat Mat Sto Total Allies 2 | . . . 2 Largest Group 2 | . . . 2 Highest-Rated Group 62 | . . . 62 Highest-Rated Ally 31 | . . . 31 Total Orders . | . . . . Ally Attacks 44 | . . . 44 Total Damage 714 | . . . 714 Kills 10 | . . . 10 Allies Corrupted . | . . . . Allies Melted . | . . . . Intel | -11 -10 -9 -9 ------- Run | Yrd Mat Mat Sto Active Infowar (turns) 182 | 35 140 7 . Seismic 175 | 35 140 . . T.N.C. 7 | . . 7 . Robot Analysis Total 5 | . 3 2 . Derelict Logs Recovered . | . . . . Drone Launches . | . . . . Drone Recoveries . | . . . . Exploration | -11 -10 -9 -9 ------------- Run | Yrd Mat Mat Sto Turns Passed 4676 | 120 1077 2408 1071 Spaces Moved 2658 | 67 623 1349 619 Core 22 | 22 . . . Treads . | . . . . Legs 2463 | 45 450 1349 619 Wheels 173 | . 173 . . Hover . | . . . . Flight . | . . . . Fastest Speed 50 | 50 95 120 120 Average Speed 119 | 105 113 121 120 Slowest Speed 190 | 150 190 190 190 Overloaded Moves . | . . . . Propulsion Burnouts . | . . . . Robots Hopped . | . . . . Potential Cave-ins 8 | . 8 . . Cave-ins Triggered 1 | . 1 . . Exploration Rate (%) 61 | 4 83 85 74 Regions Visited 3 Branch Regions 1 Pre-discovered Areas . | . . . . Known Exits Taken 1 | . . 1 . Unknown Exits Taken 2 | 1 1 . . Scrap Searched . | . . . . Spaces Dug 24 | . 17 7 . Terrain Destroyed 104 | . 35 69 . Melee 7 | . . 7 . Projectile 28 | . 28 . . AOE 69 | . 7 62 . Terrain Rammed . | . . . . Walls Destroyed . | . . . . Machines Disabled . | . . . . Actions | -11 -10 -9 -9 --------- Run | Yrd Mat Mat Sto Total 3508 | 97 779 1836 796 Wait 287 | 8 8 228 43 Move 2654 | 66 621 1348 619 Hop . | . . . . Pick Up 44 | 6 7 25 6 Fast Attach 43 | 6 4 28 5 Attach 21 | 1 6 12 2 Detach 13 | . 5 7 1 Swap 41 | . 11 15 15 Drop 55 | . 9 30 16 Fire 319 | 10 101 132 76 Melee 20 | . 6 11 3 Ram . | . . . . Kick 1 | . . . 1 Crush . | . . . . Escape Stasis 1 | . 1 . . Rewire 1 | . . . 1 Trap . | . . . . Miscellaneous 8 | . . . 8 Route ------- -11/Scrapyard -10/Materials (discovered 3 exits: *Mat x3) -9/Materials (discovered 4 exits: *Mat x2 / [*Min] / *Sto) -9/Storage (discovered 1 exit: *Rec) History --------- Turn | Location | Event 14 | -11/Scrapyard | Discovered new exit (range 16) 121 | -11/Scrapyard | Entered Materials 301 | -10/Materials | Build established: Mutant 455 | -10/Materials | Discovered new exit (range 7) 739 | -10/Materials | Discovered new exit (range 8) 879 | -10/Materials | Crushed by falling debris 880 | -10/Materials | System corruption reached 10% 910 | -10/Materials | Lost 3 parts (1p2w) 1128 | -10/Materials | Discovered new exit (range 9) 1198 | -10/Materials | Entered another Materials area 1198 | -9/Materials | Evolved 2 slots: Propulsion x1, Utility x1 1404 | -9/Materials | Build established: Scavenger-Mutant 1658 | -9/Materials | Lost 4 parts (2n2w) 1967 | -9/Materials | Build established: Mutant 1985 | -9/Materials | Discovered new exit (range 15) 2015 | -9/Materials | Identified exit to Materials 2693 | -9/Materials | Discovered exit to Materials (range 10) 2916 | -9/Materials | Repaired Aluminum Leg 2953 | -9/Materials | Repaired Broken Aluminum Leg 2980 | -9/Materials | Repaired Aluminum Leg 3355 | -9/Materials | Discovered new exit (range 6) 3378 | -9/Materials | Core integrity fell below 50% 3544 | -9/Materials | Discovered new exit (range 6) 3578 | -9/Materials | Identified exit to Storage 3598 | -9/Materials | First assault squad dispatched 3606 | -9/Materials | Entered Storage 3614 | -9/Storage | Met a pair of Derelict thieves 3995 | -9/Storage | Used back door to open Recycling access 3995 | -9/Storage | Discovered new exit (range 5) 3999 | -9/Storage | Identified exit to Recycling 4018 | -9/Storage | Build established: Scavenger-Mutant 4605 | -9/Storage | Core integrity fell below 20% 4677 | -9/Storage | Destroyed by Y-45 Defender with Beam Rifle Last Messages --------------- 04614_ Heat Sink melted. 04614_ Lgt. Treads melted. 04614_ Y-45 Defender destroyed. 04624_ System corrupted: FCS attempts to trigger Imp. Medium Laser. 04624_ System corrupted: Imp. Medium Laser misfires. 04629_ Y-45 Defender suffers critical hit (Burn). 04630_ Y-45 Defender heat short circuits Lgt. Treads. 04635_ Heat Sink melted. 04635_ Y-45 Defender destroyed. 04651_ 8MPU2MSX:VBPJCDF DVRS,,3BW&DMQZ3 ZE 04667_ R-06 Scavenger suffers critical hit (Burn). 04667_ Com. Wheel melted. 04667_ R-06 Scavenger destroyed. 04676_ Y-45 Defender suffers critical hit (Burn). Map ----- +----------------------------------------------------+ | ????## *!%#?# # #??# # | | ?????# !!### ###+#######??# # ! ! | | ?????# # #????# + [ | | ?????# + #????# #! | | ?????# # #????# # | | ??#######+## # ###### #? | | ?# # # + #? | | ?# + # # #??#### | | ?# # ######## ############ | | ?# # %%*= | | ?#########?# | | ????# #?# % | | ?####+##%########## ### | | # # ## ##### #?? | | # + % #?? | | # # ## ### #####+## #?? | | # """ # ###+#### # # % #?? | | # """ # + + #% ]/ % #?? | | # """ # # ! #### # ! # #### ##? | | ###### # # []=#??# #! [# #?# ## | | ?????### # #??# # ] # #?# %% | | ???????# # #??# ##+##+## #?# % | | ???????# # #??# ## #?# | | ??????## ########??# ## #?# ## | | ??????# ########## ##+#########? | | ??????# % Y =*=@*=* ## #?? | | ??????# Y############# ## """#?? | | ??????## ##???????#####+##+## [ """### | | ???????# #????????# # """## | | ???????+ ????????+ # ## | | ???????# ????????# """""" # # | | ???????# ????????# "=*!%" ####+###### | | ???????# ????????+ "[=!!" + ###### | | ???????# #????????# "" """ ### + | | ???????? ?????????# #?# ###### | | ???????? ?????###?# #?# #????# | | ???????? ??#### ####+########## ####### | | ???????? ??# | | ???????? ??# > | | ???????????# #T###################### | | ???????????########????????????????????? | | ???????????????????????????????????????? | | ???????????????????????????????????????? | | ???????????????????????????????????????? | | ???????????????????????????????????????? | | | | | | | | | | | +----------------------------------------------------+ Best States ------------- Heat Dissipation 42 Energy Generation 14 Energy Capacity 280 Matter Stores 300 Matter Capacity 300 Sight Range 16 Terrain Scan Density 10 Evasion (%) 55 Targeting Accuracy 5 Authchip Count 2 Trap Extractor Capacity 4 Item Schematics ----------------- Hacking Suite | -9/Materials | Scanalyzed Robot Schematics ------------------ None Fabricated ------------ Nothing Repaired ---------- Aluminum Leg | 10% | -9/Materials Aluminum Leg | 37% | -9/Materials | Broken Aluminum Leg | 33% | -9/Materials Alien Tech Used ----------------- None Achievements -------------- None Challenges ------------ None Game ------ Seed TargetingTiamatShovel Manual? 0 Play Time 00:43:51 Cumulative 217.5 hours Start 2025.06.15 @ 19:34:56 End 2025.06.15 @ 20:25:02 Sessions 1 Manual Loads 0 Difficulty Rogue Special Mode None Game No. 206 Rogue 206 Adventurer 0 Explorer 0 Win Type - Total 1 Types 1/0/0/0/0/0/0/0/0/0 Lore% 52 Gallery% 59 Achievement% 47 Wizard Run 0 Options --------- Layout 2 ASCII 1 Keyboard 1 Movement Numpad Keybinds 0 Fullscreen 2 Font 32/TamsynBold Map View 50x44 Zoom Use 0% Tactical HUD 1 Map Filters NONE Filters NONE Steam 1 RUN: b0548601-bc8a-454a-8a71-e77b47c8bac6